Cogmind - Beta 17.1 @@@ ROGUE MODE // 2026.08.28 @ 09:46:30 Player: SA-TR1 Result: Destroyed by G-34 Mercenary with Small Laser Performance ------------- Evolutions (0) 0 Regions Visited (2) 400 Robots Destroyed (16) 80 Value Destroyed (348) 348 Prototype IDs (0) 0 Alien Tech Used (0) 0 Bonus (0) 0 TOTAL SCORE: 828 Bonus ------- None Cogmind --------- Core Integrity 0/250 Matter 199/300 Energy 233/250 System Corruption 0% Temperature Warm (133) Movement Rolling (140) Ox4 Location -10/Mines Parts ------- > --- POWER (1) -------- Ion Engine > --- PROPULSION (2) --- Wheel Wheel > --- UTILITY (2) ------ Heat Sink Huge Storage Unit > --- WEAPON (2) ------- Beam Rifle Beam Rifle > --- INVENTORY (25) --- Light Treads Large Storage Unit Improved Terrain Scanner Seismic Detector Hardened Light Armor Plating Hardened Light Armor Plating Hardened Light Armor Plating Hardened Light Armor Plating Medium Laser Beam Rifle Beam Rifle Grenade Launcher Mining Laser Peak State ------------ > --- POWER ------------ Ion Engine > --- PROPULSION ------- Light Treads Light Treads > --- UTILITY ---------- Large Storage Unit Improved Terrain Scanner > --- WEAPON ----------- Beam Rifle Light Assault Rifle > --- INVENTORY -------- Ion Engine Wheel Heat Sink Seismic Detector Hardened Light Armor Plating Hardened Light Armor Plating Hardened Light Armor Plating Hardened Light Armor Plating Medium Laser Small Laser Beam Rifle Beam Rifle Beam Rifle Grenade Launcher Mining Laser [Rating: 12] Favorites ----------- Power Ion Engine Engine Ion Engine Propulsion Light Treads Treads Light Treads Wheel Wheel Utility Improved Terrain Scanner Device Improved Terrain Scanner Storage Small Storage Unit Weapon Light Assault Rifle Energy Gun Medium Laser Ballistic Gun Light Assault Rifle Build | -11 -10 -10 ------- Run | Yrd Mat Min Slots Evolved . | . . . Power . | . . . Propulsion . | . . . Utility . | . . . Weapon . | . . . Parts Attached 18 | 8 10 . Power 2 | 1 1 . Engine 2 | 1 1 . Core . | . . . Reactor . | . . . Propulsion 6 | 2 4 . Treads 2 | . 2 . Leg . | . . . Wheel 4 | 2 2 . Hover . | . . . Flight . | . . . Utility 5 | 2 3 . Device 2 | 1 1 . Storage 3 | 1 2 . Processor . | . . . Hackware . | . . . Protection . | . . . Artifact . | . . . Weapon 5 | 3 2 . Energy Gun 4 | 2 2 . Energy Cannon . | . . . Ballistic Gun 1 | 1 . . Ballistic Cannon . | . . . Launcher . | . . . Special Weapon . | . . . Impact Weapon . | . . . Slashing Weapon . | . . . Piercing Weapon . | . . . Special Melee Weapon . | . . . Unidentified Prototypes . | . . . Parts Lost 1 | . 1 . Power . | . . . Propulsion 1 | . 1 . Utility . | . . . Weapon . | . . . Highest Loss Streak 1 | . 1 . To Critical Strikes . | . . . Average Backups 9 | 3 10 13 Power . | . . . Propulsion 1 | 1 1 1 Utility 3 | . 4 7 Weapon 3 | . 4 5 Tool/Special . | . . . Unused Backups 11 | . 1 10 Power 1 | . 1 . Propulsion . | . . . Utility 5 | . . 5 Weapon 5 | . . 5 Tool/Special . | . . . Average Slot Usage (%) 100 | . 100 100 Engine 14 | . 14 14 Treads 14 | . 15 . Wheel 13 | . 12 28 Device 14 | . 14 14 Storage 14 | . 14 14 Energy Gun 16 | . 15 28 Ballistic Gun 11 | . 12 . Peak Build Rating 12 | 9 12 12 Average Rating 9 | 6 10 11 On Entrance 7 | . 9 12 Avg Prop Armor Cover (%) 5 | . 5 . Naked Turns . | . . . Heaviest Build 92 | 14 92 92 Greatest Support 40 | 26 40 20 Greatest Overweight (x) 4 | . 4 4 Average Overweight (x) 1 | . 1 4 Largest Inventory Capacity 25 | 8 25 25 Average Capacity 14 | 7 15 25 Most Carried 15 | 6 15 13 Average Carried 9 | 3 10 13 Final Capacity 25 | 8 25 25 Final Carried 13 | 6 13 13 Class Distribution -------------------- 100% | Mutant Dominant Class ---------------- Mutant | -10/Materials Mutant | -10/Mines Resources | -11 -10 -10 ----------- Run | Yrd Mat Min Matter Collected 352 | 291 61 . Remotely . | . . . Salvage Created 540 | 198 294 48 Parts 23 | 10 11 2 Haulers Intercepted . | . . . Recyclers Shooed . | . . . Parts Field Recycled . | . . . Retrieved Matter . | . . . Parts Self-Destructed . | . . . Prevented . | . . . Parts Restored . | . . . Kills | -11 -10 -10 ------- Run | Yrd Mat Min Combat Hostiles Destroyed 10 | . 9 1 Guns 10 | . 9 1 Classes Destroyed 4 | 2 2 . Tunneler 5 | 5 . . Recycler 1 | 1 . . Swarmer 3 | . 3 . Grunt 7 | . 6 1 Best Kill Streak 3 | 3 3 1 Combat Bots Only 3 | . 3 1 Max Kills in Single Turn 1 | 1 1 1 Gunslinging . | . . . Exploded . | . . . Melee . | . . . Uniques/NPCs Destroyed . | . . . Combat | -11 -10 -10 -------- Run | Yrd Mat Min Hostile Shots Fired 84 | . 65 19 Missed 25 | . 20 5 Hits 59 | . 45 14 Projectile 59 | . 45 14 Damage Taken 727 | . 534 193 Core 253 | . 164 89 Absorbed by Shields . | . . . Core Remaining (%) 100 | 100 . . Volleys Fired 89 | 35 45 9 Largest 2 | 2 2 2 Hottest 112 | 90 112 112 Shots Fired 168 | 62 88 18 Gun 168 | 62 88 18 Cannon . | . . . Launcher . | . . . Special . | . . . Kinetic 52 | 11 41 . Thermal 116 | 51 47 18 Explosive . | . . . Electromagnetic . | . . . Robot Hit Streak 20 | 14 20 3 Robot Miss Streak 4 | 3 4 2 Penetration Max . | . . . Secondary Targets 1 | . 1 . Max Gunslinging Chain 1 | . 1 . Shots Hit Robots 104 | 35 60 9 Core Hits 31 | 9 18 4 Critical Kills . | . . . Critical Parts Destroyed . | . . . Critical Strikes 6 | 2 4 . Burn 6 | 2 4 . Melee Attacks . | . . . Impact . | . . . Slashing . | . . . Piercing . | . . . Sneak Attacks . | . . . Combat Hostiles . | . . . Follow-up Attacks . | . . . Damage Inflicted 1194 | 418 631 145 Guns 1182 | 418 619 145 Cannons . | . . . Explosions . | . . . Melee . | . . . Ramming 12 | . 12 . Kinetic 260 | 46 214 . Thermal 922 | 372 405 145 Explosive . | . . . Electromagnetic . | . . . Impact . | . . . Slashing . | . . . Piercing . | . . . Highest Corruption . | . . . Average Corruption . | . . . Corruption Purged . | . . . Corruption Blocked . | . . . Overload Shots . | . . . Overflow Damage . | . . . Projectiles . | . . . Explosions . | . . . Melee . | . . . Knockbacks . | . . . Impact . | . . . Kinetic . | . . . Secondary . | . . . Self-Inflicted Damage . | . . . Shots . | . . . Rammed 2 | . 2 . Targets Rammed 2 | . 2 . Kicked . | . . . Crushed . | . . . Highest Temperature 380 | 380 281 213 Average Temperature 147 | 148 152 116 Received Heat Transfer 360 | . 252 108 Effects 4 | 2 2 . Energy Bleed 1 | 1 . . Interference 3 | 1 2 . Siege Activations . | . . . Martial Activations . | . . . Shielding Activations . | . . . Robots Disrupted . | . . . Combat Hostiles . | . . . Robots Corrupted . | . . . Combat Hostiles . | . . . Parts Fried . | . . . Impact Corruptions . | . . . Robots Melted 1 | 1 . . Combat Hostiles . | . . . Parts Melted 5 | 1 4 . Heat Transferred 3025 | 1175 1480 370 Parts Sabotaged . | . . . Parts Stolen . | . . . Parts Stripped . | . . . Power Chain Reactions . | . . . Alert | -11 -10 -10 ------- Run | Yrd Mat Min Maximum Alert Level . | . . . Low Security (%) 100 | 100 100 100 Level 1 . | . . . Level 2 . | . . . Level 3 . | . . . Level 4 . | . . . Level 5 . | . . . High Security . | . . . Max Security . | . . . Peak Influence 150 | 15 150 20 Initial 3 | . 3 1 Average 34 | 1 46 . Influence Increases 328 | 30 268 30 Destroy 0b10 Robot/C 200 | . 180 20 Destroy 0b10 Robot/NC 30 | 30 . . Destroy Leader 60 | . 50 10 Successful Hack 7 | . 7 . Select Force Hacks 30 | . 30 . Destroy Structure 1 | . 1 . Influence Decreases 308 | 25 267 16 Entered New Map 7 | . 2 5 Time Decay 291 | 25 255 11 Lost Part 10 | . 10 . Squads Dispatched 4 | . 4 . Investigation 3 | . 3 . Extermination . | . . . Reinforcement 1 | . 1 . Assault . | . . . Garrison . | . . . Intercept . | . . . Searches Triggered . | . . . Construction Impeded . | . . . Haulers Reinforced . | . . . Active Scanning Responses . | . . . Cargo Convoy Interrupts . | . . . Stealth | -11 -10 -10 --------- Run | Yrd Mat Min Distress Signals 1 | . 1 . Communications Jammed . | . . . Distress Signals . | . . . Times Spotted 17 | . 15 2 Peak Tracking Total 6 | . 6 2 Tactical Retreats . | . . . Traps | -11 -10 -10 ------- Run | Yrd Mat Min Traps Triggered 2 | . 2 . Indirectly . | . . . Trap Hack Attempts . | . . . Triggered . | . . . Disarmed . | . . . Reprogrammed . | . . . Reused . | . . . Traps Extracted . | . . . Installed . | . . . Triggered . | . . . Machines | -11 -10 -10 ---------- Run | Yrd Mat Min Machines Disabled . | . . . Max in Single Turn . | . . . Machines Repaired . | . . . Machines Dismantled . | . . . Machines Sabotaged . | . . . Overloaded Fab Kills . | . . . Hacking | -11 -10 -10 --------- Run | Yrd Mat Min Machines Accessed 6 | . 6 . Terminals 5 | . 5 . Fabricators . | . . . Repair Stations . | . . . Recycling Units 1 | . 1 . Scanalyzers . | . . . Garrison Access . | . . . Total Hacks 17 | . 17 . Successful 5 | . 5 . Failed 12 | . 12 . Catastrophic 3 | . 3 . Database Lockouts . | . . . Manual 7 | . 7 . Terminals 16 | . 16 . Fabricators . | . . . Repair Stations . | . . . Recycling Units 1 | . 1 . Scanalyzers . | . . . Garrison Access . | . . . Terminal Hacks 3 | . 3 . Locate Traps 1 | . 1 . Recall Reinforcements 1 | . 1 . Zone Layout 1 | . 1 . Fabricator Hacks . | . . . Repair Station Hacks . | . . . Recycling Unit Hacks . | . . . Scanalyzer . | . . . Garrison Access Hacks . | . . . Unauthorized Hacks 2 | . 2 . Terminals 1 | . 1 . Track 1 | . 1 . Fabricators . | . . . Repair Stations . | . . . Recycling Units 1 | . 1 . Tunnel 1 | . 1 . Scanalyzers . | . . . Garrison Access . | . . . Data Cores Recovered . | . . . Used . | . . . Hacking Detections 5 | . 5 . Full Trace Events . | . . . Feedback Events . | . . . Feedback Blocked . | . . . Robot Schematics Acquired . | . . . Robots Built . | . . . Authchips . | . . . Time . | . . . Total Robot Build Rating . | . . . Part Schematics Acquired . | . . . Parts Built . | . . . Authchips . | . . . Time . | . . . Total Part Build Rating . | . . . Part Studies Acquired . | . . . Parts Repaired . | . . . Time . | . . . Parts Recycled . | . . . Recycled Matter . | . . . Retrieved Matter . | . . . Retrieved Components . | . . . Parts Scanalyzed . | . . . Part Schematics Acquired . | . . . Parts Damaged . | . . . Bothacking | -11 -10 -10 ------------ Run | Yrd Mat Min Used RIF Installer . | . . . Robots Hacked . | . . . Non-combat . | . . . Combat . | . . . Robot Hacks Applied . | . . . Relay Couplers Released . | . . . Fabnet Peak Effective % . | . . . Robots Rewired . | . . . Allies Hacked . | . . . Hacks Repelled . | . . . Allies | -11 -10 -10 -------- Run | Yrd Mat Min Total Allies . | . . . Largest Group . | . . . Highest-Rated Group . | . . . Highest-Rated Ally . | . . . Total Orders . | . . . Ally Attacks . | . . . Total Damage . | . . . Kills . | . . . Allies Corrupted . | . . . Allies Melted . | . . . Intel | -11 -10 -10 ------- Run | Yrd Mat Min Active Infowar (turns) 852 | 93 723 36 Terrain 852 | 93 723 36 Robot Analysis Total . | . . . Derelict Logs Recovered . | . . . Drone Launches . | . . . Drone Recoveries . | . . . Exploration | -11 -10 -10 ------------- Run | Yrd Mat Min Turns Passed 1049 | 214 775 60 Spaces Moved 541 | 113 408 20 Core 2 | 2 . . Treads 215 | . 215 . Legs . | . . . Wheels 324 | 111 193 20 Hover . | . . . Flight . | . . . Fastest Speed 50 | 50 90 140 Average Speed 135 | 89 147 140 Slowest Speed 240 | 100 240 140 Overloaded Moves . | . . . Propulsion Burnouts . | . . . Robots Hopped . | . . . Potential Cave-ins . | . . . Cave-ins Triggered . | . . . Exploration Rate (%) 29 | 4 74 10 Regions Visited 2 Branch Regions 1 Pre-discovered Areas 1 | . 1 . Known Exits Taken . | . . . Unknown Exits Taken 2 | 1 1 . Scrap Searched . | . . . Spaces Dug . | . . . Terrain Destroyed . | . . . Melee . | . . . Projectile . | . . . AOE . | . . . Terrain Rammed . | . . . Walls Destroyed . | . . . Machines Disabled . | . . . Actions | -11 -10 -10 --------- Run | Yrd Mat Min Total 696 | 161 500 35 Wait 17 | . 12 5 Move 539 | 112 407 20 Hop . | . . . Pick Up 18 | 6 12 . Fast Attach 9 | 7 2 . Attach 1 | . 1 . Detach 1 | . 1 . Swap 11 | 1 9 1 Drop 9 | . 9 . Fire 89 | 35 45 9 Melee . | . . . Ram . | . . . Kick . | . . . Crush 2 | . 2 . Escape Stasis . | . . . Rewire . | . . . Trap . | . . . Miscellaneous . | . . . Route ------- -11/Scrapyard -10/Materials (discovered 3 exits: [*Mat x2] / [*Min]) -10/Mines History --------- Turn | Location | Event 34 | -11/Scrapyard | Discovered new exit (range 15) 215 | -11/Scrapyard | Entered Materials 313 | -10/Materials | Build established: Mutant 373 | -10/Materials | Core integrity fell below 50% 427 | -10/Materials | Discovered new exit (range 15) 499 | -10/Materials | Discovered new exit (range 14) 897 | -10/Materials | Discovered new exit (range 15) 990 | -10/Materials | Entered Mines 1028 | -10/Mines | Core integrity fell below 20% 1050 | -10/Mines | Destroyed by G-34 Mercenary with Small Laser Last Messages --------------- 00914_ U-05 Engineer lays Concrete. 00918_ K-01 Serf collects debris. 00919_ U-05 Engineer lays Concrete. 00919_ U-05 Engineer destroyed. 00922_ K-01 Serf collects debris. 00929_ M-13 Machinist repairs K-01 Serf Wheel. 00931_ G-34 Mercenary suffers critical hit (Burn). 00931_ Aluminum Leg melted. 00931_ Heat Sink melted. 00931_ G-34 Mercenary destroyed. 00933_ K-01 Serf collects debris. 00934_ Dropped Sml. Laser. 00934_ Dropped Lgt. Assault Rifle. 00983_ Triggered Alarm Trap. 00983_ An alarm sounds. 00983_ ALERT: Alarm triggered, dispatching investigation squad. LOCATION=UNKNOWN GOAL=ESCAPE Something is scanning the area. 01049_ G-47 Trooper destroyed. Map ----- +----------------------------------------------------+ | ???????????????????????????????? | | ???????????????????????????????? | | ???????????????????????????????? | | ???????????????????????????????? | | ???????????????????????????????? | | ???????????????????????????????? | | ???????????????????????????????? | | ???????????????????????????????? | | ???????????????????????????????? | | ???????????????????????????????? | | ???????????????????????????????? | | ???????????????????????????????? | | ???????????????????????????????? | | ???????????????????????????????? | | ???????????#???#???????????????? | | ???????????# ??????????????????? | | ???????????# ????????????#?????? | | ??????????## ??????????????????? | | ??????????# #???????????#?????? | | ??? ??????? #?####???????????? | | ?? ?????# t## ##??????????? | | ?? ????# ##???####??? | | ??# #### """ ##?## ##?? | | ???# """ ### #?? | | ???# """ #?# | | ????# """ @ [#??? | | ??????# ####g%##?? | | ???????# t ##??# !#??? | | ???????#### ##???# #??? | | ??????????## ###????# #??? | | ???????????# ##??????# #??? | | ???????????# ####???????# #??? | | ???????????# ????#??????# #??? | | ???????????# ??????????? ??? | | ??????????? ???????????? ??? | | ?????????? ???????????" """??? | | ?????????####???????????" """ ?? | | ?????????????????? ????"" """ ?? | | ??????????????????????? ?? | | ???????????????????????? ??? ?? | | ??????????????????????? ?????? | | ???????????????????????###?????? | | ???????????????????????????????? | | ???????????????????????????????? | | ???????????????????????????????? | | ???????????????????????????????? | | | | | | | | | +----------------------------------------------------+ Best States ------------- Heat Dissipation 35 Energy Generation 10 Energy Capacity 250 Matter Stores 300 Matter Capacity 300 Sight Range 16 Terrain Scan Range 16 Terrain Scan Density 10 Evasion (%) 42 Recoil Reduction 2 Item Schematics ----------------- None Robot Schematics ------------------ None Fabricated ------------ Nothing Repaired ---------- Nothing Studied --------- None Alien Tech Used ----------------- None Achievements -------------- None Challenges ------------ None Game ------ Seed AssemblyStrikeWeb Manual? 0 Play Time 00:07:43 Cumulative 362.2 hours Start 2026.08.25 @ 16:14:31 End 2026.08.28 @ 09:46:30 Sessions 3 Manual Loads 0 Difficulty Rogue Special Mode None Game No. 124 Rogue 123 Adventurer 1 Explorer 0 Win Type - Total 13 Types 11/1/1/0/0/0/0/0/0/0 Lore% 76 Gallery% 73 Achievement% 58 Wizard Run 0 Options --------- Layout 0 ASCII 1 Keyboard 1 Movement Vi Keybinds 0 Fullscreen 1 Font 36/Terminus++ Map View 76x50 Zoom Use 0% Tactical HUD 1 Map Filters NONE Filters NONE Steam SD RUN: a6c8f187-c1a0-4ae6-9b71-2eeddce722a7